[Event "FIDE Women World Blitz 2021"]
[Site "Warsaw"]
[Date "2021.12.29"]
[Round "3.10"]
[White "Yakimova, Mariya"]
[Black "Budkiewicz, Magdalena"]
[Result "1-0"]
[ECO "E67"]
[WhiteElo "2219"]
[BlackElo "1624"]
[Annotator "NA"]
[PlyCount "59"]
[EventDate "2021.12.29"]
[EventType "swiss"]
[EventCountry "POL"]
[Tiebreak "Cut1 Buchholz"]
[SourceTitle "playchess.com"]
[Source "ChessBase"]
[SourceQuality "1"]
[TimeControl "180+2"]

1. d4 {[%emt 0:00:01]} Nf6 {[%emt 0:00:01]} 2. c4 {[%emt 0:00:01]} g6 {[%emt 0:
00:00]} 3. Nc3 {[%emt 0:00:01]} Bg7 {[%emt 0:00:02]} 4. g3 {[%emt 0:00:02]} d6
{[%emt 0:00:01]} 5. Bg2 {[%emt 0:00:00]} O-O {[%emt 0:00:02]} 6. Nf3 {[%emt 0:
00:01]} Nbd7 {[%emt 0:00:10]} 7. O-O {[%emt 0:00:03]} e5 {[%emt 0:00:02]} 8.
dxe5 {[%emt 0:00:01]} dxe5 {[%emt 0:00:07]} 9. Qc2 {[%emt 0:00:01]} c6 {
[%emt 0:00:02]} 10. Rd1 {[%emt 0:00:01]} Qe7 {[%emt 0:00:03]} 11. e4 {[%emt 0:
00:01]} Nc5 {[%emt 0:00:17]} 12. b4 {[%emt 0:00:01]} Na6 {[%emt 0:00:08]} 13.
a3 {[%emt 0:00:02]} Bg4 {[%emt 0:00:13]} 14. h3 {[%emt 0:00:02]} Bd7 {[%emt 0:
00:03]} 15. Be3 {[%emt 0:00:03]} Rfd8 {[%emt 0:00:09]} 16. Rd2 {[%emt 0:00:07]}
Nh5 {[%emt 0:00:57]} 17. Rad1 {[%emt 0:00:09]} Be6 {[%emt 0:00:25]} 18. Na4 {
[%emt 0:00:23]} b6 {[%emt 0:00:01]} 19. Bg5 {[%emt 0:00:12]} f6 {[%emt 0:00:07]
} 20. Be3 {[%emt 0:00:01]} Bf8 {[%emt 0:00:10]} 21. c5 {[%emt 0:00:09]} b5 {
[%emt 0:00:07]} 22. Nc3 {[%emt 0:00:01]} Qf7 {[%emt 0:00:04]} 23. Rxd8 {
[%emt 0:00:06]} Bb3 {[%emt 0:00:04]} 24. Qc1 {[%emt 0:00:03]} Bxd1 {[%emt 0:00:
17]} 25. Qxd1 {[%emt 0:00:08]} Rxd8 {[%emt 0:00:06]} 26. Qxd8 {[%emt 0:00:02]}
Qb3 {[%emt 0:00:01]} 27. Bh6 {[%emt 0:00:16]} Ng7 {[%emt 0:00:02]} 28. Ne2 {
[%emt 0:00:18]} Qxa3 {[%emt 0:00:05]} 29. Qxf6 {[%emt 0:00:05]} Qxb4 {[%emt 0:
00:03]} 30. Nxe5 {[%emt 0:00:02]} 1-0

[Event "FIDE Women World Blitz 2021"]
[Site "Warsaw"]
[Date "2021.12.29"]
[Round "3.10"]
[White "Zairbek kyzy, Begimai"]
[Black "Assaubayeva, Bibisara"]
[Result "0-1"]
[ECO "B22"]
[WhiteElo "1701"]
[BlackElo "2400"]
[Annotator "NA"]
[PlyCount "51"]
[EventDate "2021.12.29"]
[EventType "swiss"]
[EventCountry "POL"]
[Tiebreak "Cut1 Buchholz"]
[SourceTitle "playchess.com"]
[Source "ChessBase"]
[SourceQuality "1"]
[TimeControl "180+2"]

1. e4 {[%emt 0:00:01]} c5 {[%emt 0:00:00]} 2. d4 {[%emt 0:00:01]} cxd4 {
[%emt 0:00:01]} 3. c3 Nf6 {[%emt 0:00:01]} 4. e5 Nd5 {[%emt 0:00:02]} 5. Nf3 {
[%emt 0:00:02]} Nc6 {[%emt 0:00:01]} 6. cxd4 {[%emt 0:00:02]} d6 {[%emt 0:00:
01]} 7. Bc4 {[%emt 0:00:46]} e6 {[%emt 0:00:01]} 8. O-O {[%emt 0:00:06]} Be7 {
[%emt 0:00:01]} 9. Qe2 {[%emt 0:00:03]} O-O {[%emt 0:00:03]} 10. Nc3 {[%emt 0:
00:02]} Nxc3 {[%emt 0:00:02]} 11. bxc3 {[%emt 0:00:01]} dxe5 {[%emt 0:00:01]}
12. dxe5 {[%emt 0:00:11]} Qc7 {[%emt 0:00:02]} 13. Bf4 {[%emt 0:00:27]} b6 {
[%emt 0:00:05]} 14. Bd3 {[%emt 0:00:08]} Bb7 {[%emt 0:00:04]} 15. Qe4 {[%emt 0:
00:26]} g6 {[%emt 0:00:01]} 16. Bh6 {[%emt 0:00:02]} Rfd8 {[%emt 0:00:21]} 17.
Qe2 {[%emt 0:00:52]} Na5 {[%emt 0:00:05]} 18. Rad1 {[%emt 0:00:03]} Bxf3 {
[%emt 0:00:20]} 19. Qxf3 {[%emt 0:00:01]} Qxe5 {[%emt 0:00:08]} 20. Be4 {
[%emt 0:00:14]} Rac8 {[%emt 0:00:12]} 21. Rxd8+ {[%emt 0:00:06]} Rxd8 {[%emt 0:
00:01]} 22. Bf4 {[%emt 0:00:02]} Qc5 {[%emt 0:00:16]} 23. Qg3 {[%emt 0:00:02]}
Bf6 {[%emt 0:00:18]} 24. h4 {[%emt 0:00:02]} Qxc3 {[%emt 0:00:10]} 25. Bf3 {
[%emt 0:00:00]} Qc5 {[%emt 0:01:04]} 26. Rc1 {[%emt 0:00:12]} 0-1

[Event "FIDE Women World Blitz 2021"]
[Site "Warsaw"]
[Date "2021.12.29"]
[Round "3.11"]
[White "Bulmaga, Irina"]
[Black "Vantika Agrawal"]
[Result "0-1"]
[ECO "B90"]
[WhiteElo "2405"]
[BlackElo "2329"]
[Annotator "NA"]
[PlyCount "120"]
[EventDate "2021.12.29"]
[EventType "swiss"]
[EventCountry "POL"]
[Tiebreak "Cut1 Buchholz"]
[SourceTitle "playchess.com"]
[Source "ChessBase"]
[SourceQuality "1"]
[TimeControl "180+2"]

1. e4 {[%emt 0:00:01]} c5 {[%emt 0:00:01]} 2. Nf3 {[%emt 0:00:02]} d6 {[%emt 0:
00:01]} 3. d4 {[%emt 0:00:03]} cxd4 {[%emt 0:00:01]} 4. Nxd4 {[%emt 0:00:02]}
Nf6 {[%emt 0:00:01]} 5. Nc3 {[%emt 0:00:01]} a6 {[%emt 0:00:01]} 6. h3 {
[%emt 0:00:03]} e5 {[%emt 0:00:02]} 7. Nb3 {[%emt 0:00:01]} Be7 {[%emt 0:00:06]
} 8. Be3 {[%emt 0:00:02]} h6 {[%emt 0:00:19]} 9. Qe2 {[%emt 0:00:25]} Qc7 {
[%emt 0:00:26]} 10. O-O-O {[%emt 0:00:04]} b5 {[%emt 0:00:05]} 11. a3 {[%emt 0:
00:09]} Bb7 {[%emt 0:00:38]} 12. f4 {[%emt 0:00:02]} Nbd7 {[%emt 0:00:09]} 13.
Nd5 {[%emt 0:00:18]} Nxd5 {[%emt 0:00:19]} 14. exd5 {[%emt 0:00:01]} O-O {
[%emt 0:00:09]} 15. g4 {[%emt 0:00:09]} exf4 {[%emt 0:00:06]} 16. Bxf4 {
[%emt 0:00:11]} Rfe8 {[%emt 0:00:08]} 17. Qd2 {[%emt 0:00:04]} Nb6 {[%emt 0:00:
15]} 18. Bg2 {[%emt 0:00:16]} Nc4 {[%emt 0:00:01]} 19. Qd3 {[%emt 0:00:01]} Bf6
{[%emt 0:00:06]} 20. Nd4 {[%emt 0:00:05]} Qc5 {[%emt 0:00:13]} 21. c3 {[%emt 0:
00:30]} Rac8 {[%emt 0:00:07]} 22. Nc6 {[%emt 0:00:36]} a5 {[%emt 0:00:11]} 23.
Rhe1 {[%emt 0:00:26]} Ba6 {[%emt 0:00:03]} 24. Qc2 {[%emt 0:00:09]} a4 {
[%emt 0:00:13]} 25. Kb1 {[%emt 0:00:03]} Qb6 {[%emt 0:00:05]} 26. Bc1 {[%emt 0:
00:07]} Bb7 {[%emt 0:00:01]} 27. Ka1 {[%emt 0:00:02]} Qc5 {[%emt 0:00:01]} 28.
Nb4 {[%emt 0:00:01]} Rcd8 {[%emt 0:00:02]} 29. Nc6 {[%emt 0:00:02]} Bxc6 {
[%emt 0:00:03]} 30. dxc6 {[%emt 0:00:01]} Rxe1 {[%emt 0:00:03]} 31. Rxe1 {
[%emt 0:00:00]} d5 {[%emt 0:00:01]} 32. Rd1 {[%emt 0:00:06]} Qxc6 {[%emt 0:00:
01]} 33. Qf5 {[%emt 0:00:02]} Nb6 {[%emt 0:00:02]} 34. Be3 {[%emt 0:00:01]} Nc4
{[%emt 0:00:03]} 35. Bd4 {[%emt 0:00:02]} Bxd4 {[%emt 0:00:02]} 36. Rxd4 {
[%emt 0:00:01]} Re8 {[%emt 0:00:04]} 37. Bxd5 {[%emt 0:00:02]} Qc7 {[%emt 0:00:
01]} 38. Re4 {[%emt 0:00:02]} Rd8 {[%emt 0:00:01]} 39. Ka2 {[%emt 0:00:03]} Nb6
{[%emt 0:00:02]} 40. Rd4 {[%emt 0:00:01]} Nxd5 {[%emt 0:00:01]} 41. Qd3 {
[%emt 0:00:03]} Qc5 {[%emt 0:00:04]} 42. Qd2 {[%emt 0:00:03]} Rd7 {[%emt 0:00:
01]} 43. Qd3 {[%emt 0:00:01]} Qc6 {[%emt 0:00:02]} 44. Qd2 {[%emt 0:00:01]} Nb6
{[%emt 0:00:01]} 45. Qd3 {[%emt 0:00:03]} Rxd4 {[%emt 0:00:01]} 46. Qxd4 {
[%emt 0:00:01]} Qc4+ {[%emt 0:00:01]} 47. Qxc4 {[%emt 0:00:01]} bxc4 {[%emt 0:
00:01]} 48. Kb1 {[%emt 0:00:01]} g6 {[%emt 0:00:02]} 49. Kc2 {[%emt 0:00:01]}
f5 {[%emt 0:00:00]} 50. gxf5 {[%emt 0:00:01]} gxf5 {[%emt 0:00:01]} 51. Kd2 {
[%emt 0:00:01]} Kf7 {[%emt 0:00:01]} 52. Ke3 {[%emt 0:00:00]} Ke6 {[%emt 0:00:
01]} 53. Kd4 {[%emt 0:00:01]} f4 {[%emt 0:00:02]} 54. Kc5 {[%emt 0:00:01]} f3 {
[%emt 0:00:02]} 55. Kxb6 {[%emt 0:00:02]} f2 {[%emt 0:00:01]} 56. Kb5 {[%emt 0:
00:01]} f1=Q {[%emt 0:00:02]} 57. Kxa4 {[%emt 0:00:01]} Kd5 {[%emt 0:00:02]}
58. Kb4 {[%emt 0:00:01]} Qb1 {[%emt 0:00:02]} 59. a4 {[%emt 0:00:02]} Qxb2+ {
[%emt 0:00:02]} 60. Ka5 {[%emt 0:00:01]} Kc5 {[%emt 0:00:01]} 0-1

[Event "FIDE Women World Blitz 2021"]
[Site "Warsaw"]
[Date "2021.12.29"]
[Round "3.11"]
[White "Kolaric, Spela"]
[Black "Szczotka, Klara"]
[Result "0-1"]
[ECO "E65"]
[WhiteElo "2178"]
[BlackElo "1584"]
[Annotator "NA"]
[PlyCount "135"]
[EventDate "2021.12.29"]
[EventType "swiss"]
[EventCountry "POL"]
[Tiebreak "Cut1 Buchholz"]
[SourceTitle "playchess.com"]
[Source "ChessBase"]
[SourceQuality "1"]
[TimeControl "180+2"]

1. Nf3 {[%emt 0:00:01]} c5 {[%emt 0:00:01]} 2. g3 {[%emt 0:00:01]} g6 {[%emt 0:
00:01]} 3. Bg2 {[%emt 0:00:01]} Bg7 {[%emt 0:00:00]} 4. O-O {[%emt 0:00:01]}
Nc6 {[%emt 0:00:01]} 5. c4 {[%emt 0:00:04]} Nf6 {[%emt 0:00:02]} 6. Nc3 {
[%emt 0:00:02]} d6 {[%emt 0:00:02]} 7. d4 {[%emt 0:00:01]} O-O {[%emt 0:00:03]}
8. dxc5 {[%emt 0:00:01]} dxc5 {[%emt 0:00:01]} 9. Be3 {[%emt 0:00:03]} Nd7 {
[%emt 0:00:18]} 10. Rc1 {[%emt 0:00:12]} Rb8 {[%emt 0:00:22]} 11. Nd2 {[%emt 0:
00:32]} Nd4 {[%emt 0:00:28]} 12. Nb3 {[%emt 0:00:10]} Nxb3 {[%emt 0:00:01]} 13.
Qxb3 {[%emt 0:00:01]} b6 {[%emt 0:00:01]} 14. Rfd1 {[%emt 0:00:04]} Bb7 {
[%emt 0:00:07]} 15. Bh3 {[%emt 0:00:10]} Bc6 {[%emt 0:00:16]} 16. Nd5 {[%emt 0:
00:18]} e6 {[%emt 0:00:08]} 17. Nc3 {[%emt 0:00:06]} Qe7 {[%emt 0:00:11]} 18.
Bf4 {[%emt 0:00:01]} e5 {[%emt 0:00:24]} 19. Be3 {[%emt 0:00:01]} f5 {[%emt 0:
00:04]} 20. Nd5 {[%emt 0:00:01]} Qf7 {[%emt 0:00:08]} 21. Bg5 {[%emt 0:00:06]}
Nf6 {[%emt 0:00:07]} 22. Bg2 {[%emt 0:00:09]} e4 {[%emt 0:00:18]} 23. Bf4 {
[%emt 0:00:22]} Rbd8 {[%emt 0:00:03]} 24. Nc7 {[%emt 0:00:05]} Rd7 {[%emt 0:00:
09]} 25. Nb5 {[%emt 0:00:03]} Rfd8 {[%emt 0:00:07]} 26. Rxd7 {[%emt 0:00:29]}
Rxd7 {[%emt 0:00:01]} 27. Nc3 {[%emt 0:00:05]} Qe6 {[%emt 0:00:04]} 28. Nd1 {
[%emt 0:00:16]} h6 {[%emt 0:00:03]} 29. h4 {[%emt 0:00:03]} Nh5 {[%emt 0:00:04]
} 30. Be3 {[%emt 0:00:02]} Kh7 {[%emt 0:00:05]} 31. Qc2 {[%emt 0:00:06]} Bd4 {
[%emt 0:00:02]} 32. b3 {[%emt 0:00:01]} Nf6 {[%emt 0:00:03]} 33. Bf4 {[%emt 0:
00:03]} Nh5 {[%emt 0:00:03]} 34. Bd2 {[%emt 0:00:02]} Nf6 {[%emt 0:00:02]} 35.
Bc3 {[%emt 0:00:00]} Ng4 {[%emt 0:00:03]} 36. Bxd4 {[%emt 0:00:03]} cxd4 {
[%emt 0:00:06]} 37. c5 {[%emt 0:00:01]} b5 {[%emt 0:00:02]} 38. Qd2 {[%emt 0:
00:07]} Qe5 {[%emt 0:00:02]} 39. Qf4 {[%emt 0:00:01]} Qxf4 {[%emt 0:00:02]} 40.
gxf4 {[%emt 0:00:01]} Nf6 {[%emt 0:00:02]} 41. Kf1 {[%emt 0:00:02]} Nd5 {
[%emt 0:00:01]} 42. e3 {[%emt 0:00:02]} d3 {[%emt 0:00:01]} 43. Ke1 {[%emt 0:
00:03]} Nb4 {[%emt 0:00:01]} 44. Kd2 {[%emt 0:00:03]} Nxa2 {[%emt 0:00:03]} 45.
Nc3 {[%emt 0:00:02]} Nxc3 {[%emt 0:00:02]} 46. Rxc3 {[%emt 0:00:00]} Rd5 {
[%emt 0:00:03]} 47. b4 {[%emt 0:00:00]} Rd7 {[%emt 0:00:03]} 48. Ra3 {[%emt 0:
00:01]} Kg7 {[%emt 0:00:03]} 49. Ra6 {[%emt 0:00:00]} Rc7 {[%emt 0:00:04]} 50.
Bf1 {[%emt 0:00:03]} Kf6 {[%emt 0:00:01]} 51. f3 {[%emt 0:00:03]} Ke6 {[%emt 0:
00:04]} 52. fxe4 {[%emt 0:00:01]} fxe4 {[%emt 0:00:01]} 53. Bh3+ {[%emt 0:00:
00]} Kd5 {[%emt 0:00:03]} 54. Kc3 {[%emt 0:00:04]} Rf7 {[%emt 0:00:05]} 55.
Be6+ {[%emt 0:00:05]} Kxe6 {[%emt 0:00:01]} 56. Rxc6+ {[%emt 0:00:01]} Kf5 {
[%emt 0:00:01]} 57. Rd6 {[%emt 0:00:03]} Re7 {[%emt 0:00:03]} 58. c6 {[%emt 0:
00:03]} Rc7 {[%emt 0:00:01]} 59. Kd4 {[%emt 0:00:05]} Rxc6 {[%emt 0:00:03]} 60.
Rxc6 {[%emt 0:00:13]} d2 {[%emt 0:00:01]} 61. Rc5+ {[%emt 0:00:00]} Kg4 {
[%emt 0:00:04]} 62. Kxe4 {[%emt 0:00:07]} d1=Q {[%emt 0:00:02]} 63. Rxb5 {
[%emt 0:00:01]} Qc2+ {[%emt 0:00:01]} 64. Ke5 {[%emt 0:00:02]} Qd3 {[%emt 0:00:
01]} 65. Rd5 {[%emt 0:00:03]} Qxe3+ {[%emt 0:00:02]} 66. Kd6 {[%emt 0:00:01]}
Qxf4+ {[%emt 0:00:02]} 67. Kc5 {[%emt 0:00:00]} Kxh4 {[%emt 0:00:01]} 68. Kc6 {
[%emt 0:00:00]} 0-1

[Event "FIDE Women World Blitz 2021"]
[Site "Warsaw"]
[Date "2021.12.29"]
[Round "3.12"]
[White "Antolak, Julia"]
[Black "Injac, Teodora"]
[Result "1/2-1/2"]
[ECO "C77"]
[WhiteElo "2334"]
[BlackElo "2387"]
[Annotator "NA"]
[PlyCount "112"]
[EventDate "2021.12.29"]
[EventType "swiss"]
[EventCountry "POL"]
[Tiebreak "Cut1 Buchholz"]
[SourceTitle "playchess.com"]
[Source "ChessBase"]
[SourceQuality "1"]
[TimeControl "180+2"]

1. e4 {[%emt 0:00:02]} e5 {[%emt 0:00:01]} 2. Nf3 {[%emt 0:00:01]} Nc6 {
[%emt 0:00:00]} 3. Bb5 {[%emt 0:00:01]} a6 {[%emt 0:00:01]} 4. Ba4 {[%emt 0:00:
01]} Nf6 {[%emt 0:00:01]} 5. d3 {[%emt 0:00:01]} d6 {[%emt 0:00:04]} 6. c3 {
[%emt 0:00:11]} g6 {[%emt 0:00:01]} 7. h3 {[%emt 0:00:04]} Bg7 {[%emt 0:00:02]}
8. O-O {[%emt 0:00:04]} O-O {[%emt 0:00:00]} 9. Re1 {[%emt 0:00:02]} h6 {
[%emt 0:00:02]} 10. Nbd2 {[%emt 0:00:02]} Re8 {[%emt 0:00:08]} 11. Nf1 {
[%emt 0:00:02]} b5 {[%emt 0:00:03]} 12. Bc2 {[%emt 0:00:01]} a5 {[%emt 0:00:02]
} 13. d4 {[%emt 0:00:08]} Ba6 {[%emt 0:00:34]} 14. N3h2 {[%emt 0:00:41]} Nh5 {
[%emt 0:00:13]} 15. Be3 {[%emt 0:00:09]} Bb7 {[%emt 0:00:21]} 16. d5 {[%emt 0:
00:12]} Ne7 {[%emt 0:00:04]} 17. Qd2 {[%emt 0:00:02]} Nf4 {[%emt 0:00:22]} 18.
Bxf4 {[%emt 0:00:13]} exf4 {[%emt 0:00:01]} 19. Qxf4 {[%emt 0:00:01]} h5 {
[%emt 0:00:21]} 20. Rab1 {[%emt 0:00:11]} Nc8 {[%emt 0:00:04]} 21. Nf3 {
[%emt 0:00:15]} Nb6 {[%emt 0:00:10]} 22. Bd3 {[%emt 0:00:08]} b4 {[%emt 0:00:
04]} 23. Nd4 {[%emt 0:00:30]} Rf8 {[%emt 0:00:24]} 24. Ng3 {[%emt 0:00:04]} h4
{[%emt 0:00:05]} 25. Nf1 {[%emt 0:00:04]} Na4 {[%emt 0:00:04]} 26. Qd2 {
[%emt 0:00:13]} Nc5 {[%emt 0:00:07]} 27. Bb5 {[%emt 0:00:08]} Qf6 {[%emt 0:00:
09]} 28. Nh2 {[%emt 0:00:07]} Qe7 {[%emt 0:00:07]} 29. Qc2 {[%emt 0:00:15]} Ba6
{[%emt 0:00:10]} 30. Bxa6 {[%emt 0:00:02]} Rxa6 {[%emt 0:00:02]} 31. Rbd1 {
[%emt 0:00:02]} Rb6 {[%emt 0:00:03]} 32. cxb4 {[%emt 0:00:02]} Rxb4 {[%emt 0:
00:01]} 33. Nc6 {[%emt 0:00:02]} Qg5 {[%emt 0:00:05]} 34. Nxb4 {[%emt 0:00:02]}
axb4 {[%emt 0:00:00]} 35. Nf3 {[%emt 0:00:01]} Qf6 {[%emt 0:00:02]} 36. b3 {
[%emt 0:00:01]} Ra8 {[%emt 0:00:01]} 37. e5 {[%emt 0:00:02]} Qf4 {[%emt 0:00:
05]} 38. exd6 {[%emt 0:00:02]} cxd6 39. Re2 {[%emt 0:00:03]} Bf6 {[%emt 0:00:
04]} 40. Rde1 {[%emt 0:00:01]} Kg7 {[%emt 0:00:00]} 41. Qc4 {[%emt 0:00:03]}
Qxc4 {[%emt 0:00:04]} 42. bxc4 {[%emt 0:00:01]} Bc3 {[%emt 0:00:03]} 43. Rb1 {
[%emt 0:00:01]} Ra4 {[%emt 0:00:03]} 44. Rc2 {[%emt 0:00:04]} Ne4 {[%emt 0:00:
03]} 45. Ne1 {[%emt 0:00:04]} Nc5 {[%emt 0:00:03]} 46. Kf1 {[%emt 0:00:02]} f5
{[%emt 0:00:00]} 47. Ke2 {[%emt 0:00:02]} Kf6 {[%emt 0:00:01]} 48. Nd3 {
[%emt 0:00:00]} Nxd3 {[%emt 0:00:04]} 49. Kxd3 {[%emt 0:00:02]} Ra3 {[%emt 0:
00:00]} 50. Rb3 {[%emt 0:00:01]} Ra7 {[%emt 0:00:02]} 51. Re2 {[%emt 0:00:02]}
Kf7 {[%emt 0:00:03]} 52. Re6 {[%emt 0:00:01]} Rxa2 {[%emt 0:00:04]} 53. Rxd6 {
[%emt 0:00:02]} f4 {[%emt 0:00:03]} 54. Rd7+ {[%emt 0:00:04]} Ke8 {[%emt 0:00:
00]} 55. Rb7 {[%emt 0:00:03]} Rxf2 {[%emt 0:00:02]} 56. c5 {[%emt 0:00:03]}
Rd2+ {[%emt 0:00:02]} 1/2-1/2

[Event "FIDE Women World Blitz 2021"]
[Site "Warsaw"]
[Date "2021.12.29"]
[Round "3.12"]
[White "Parol, Pola"]
[Black "Kiolbasa, Oliwia"]
[Result "0-1"]
[ECO "C92"]
[WhiteElo "1823"]
[BlackElo "2403"]
[Annotator "NA"]
[PlyCount "115"]
[EventDate "2021.12.29"]
[EventType "swiss"]
[EventCountry "POL"]
[Tiebreak "Cut1 Buchholz"]
[SourceTitle "playchess.com"]
[Source "ChessBase"]
[SourceQuality "1"]
[TimeControl "180+2"]

1. e4 {[%emt 0:00:01]} e5 {[%emt 0:00:01]} 2. Nf3 {[%emt 0:00:01]} Nc6 {
[%emt 0:00:01]} 3. Bb5 {[%emt 0:00:01]} a6 {[%emt 0:00:00]} 4. Ba4 {[%emt 0:00:
00]} Nf6 {[%emt 0:00:02]} 5. O-O {[%emt 0:00:02]} Be7 {[%emt 0:00:03]} 6. Re1 {
[%emt 0:00:02]} b5 {[%emt 0:00:01]} 7. Bb3 {[%emt 0:00:01]} d6 {[%emt 0:00:01]}
8. c3 {[%emt 0:00:01]} O-O {[%emt 0:00:02]} 9. h3 {[%emt 0:00:02]} Bb7 {
[%emt 0:00:01]} 10. d4 {[%emt 0:00:02]} Re8 {[%emt 0:00:01]} 11. a3 {[%emt 0:
00:04]} Bf8 {[%emt 0:00:02]} 12. Bg5 {[%emt 0:00:07]} h6 {[%emt 0:00:05]} 13.
Bxf6 {[%emt 0:00:35]} Qxf6 {[%emt 0:00:02]} 14. d5 {[%emt 0:00:05]} Ne7 {
[%emt 0:00:01]} 15. Nbd2 {[%emt 0:00:04]} Ng6 {[%emt 0:00:03]} 16. Nf1 {
[%emt 0:00:03]} Nf4 {[%emt 0:00:04]} 17. Ng3 {[%emt 0:00:04]} c6 {[%emt 0:00:
04]} 18. dxc6 {[%emt 0:00:04]} Bxc6 {[%emt 0:00:01]} 19. Re3 {[%emt 0:00:25]}
Rad8 {[%emt 0:00:09]} 20. Qd2 {[%emt 0:00:10]} d5 {[%emt 0:00:35]} 21. exd5 {
[%emt 0:00:03]} Bxd5 {[%emt 0:00:01]} 22. Bxd5 {[%emt 0:00:06]} Rxd5 {[%emt 0:
00:02]} 23. Qc2 {[%emt 0:00:08]} Bc5 {[%emt 0:00:05]} 24. Ree1 {[%emt 0:00:36]}
Nxh3+ {[%emt 0:00:18]} 25. gxh3 {[%emt 0:00:09]} Qxf3 {[%emt 0:00:00]} 26. Ne4
{[%emt 0:00:30]} Red8 {[%emt 0:00:00]} 27. Qe2 {[%emt 0:00:16]} Qxh3 {[%emt 0:
00:00]} 28. Nxc5 {[%emt 0:00:07]} Rxc5 {[%emt 0:00:00]} 29. Qe3 {[%emt 0:00:03]
} Qxe3 {[%emt 0:00:06]} 30. Rxe3 {[%emt 0:00:05]} Rd2 {[%emt 0:00:05]} 31. b4 {
[%emt 0:00:00]} Rcd5 {[%emt 0:00:04]} 32. a4 {[%emt 0:00:02]} Rd1+ {[%emt 0:00:
02]} 33. Rxd1 {[%emt 0:00:01]} Rxd1+ {[%emt 0:00:02]} 34. Kg2 {[%emt 0:00:02]}
f6 {[%emt 0:00:12]} 35. axb5 {[%emt 0:00:01]} axb5 {[%emt 0:00:01]} 36. Kf3 {
[%emt 0:00:03]} Kf7 {[%emt 0:00:02]} 37. Ke2 {[%emt 0:00:02]} Rd7 {[%emt 0:00:
07]} 38. Re4 {[%emt 0:00:04]} Ke6 {[%emt 0:00:07]} 39. Rg4 {[%emt 0:00:02]} g5
{[%emt 0:00:03]} 40. Rg1 {[%emt 0:00:01]} h5 {[%emt 0:00:02]} 41. Ra1 {[%emt 0:
00:03]} h4 {[%emt 0:00:07]} 42. Ra6+ {[%emt 0:00:03]} Kf5 {[%emt 0:00:01]} 43.
Ra1 {[%emt 0:00:01]} Ke4 {[%emt 0:00:06]} 44. f3+ {[%emt 0:00:02]} Kf4 {
[%emt 0:00:01]} 45. Rg1 {[%emt 0:00:02]} f5 {[%emt 0:00:06]} 46. Rc1 {[%emt 0:
00:02]} h3 {[%emt 0:00:06]} 47. c4 {[%emt 0:00:02]} bxc4 {[%emt 0:00:12]} 48.
Rxc4+ {[%emt 0:00:01]} Rd4 {[%emt 0:00:09]} 49. Rc1 {[%emt 0:00:05]} Rxb4 {
[%emt 0:00:03]} 50. Rh1 {[%emt 0:00:03]} g4 {[%emt 0:00:02]} 51. fxg4 {[%emt 0:
00:01]} fxg4 {[%emt 0:00:01]} 52. Rf1+ {[%emt 0:00:02]} Kg3 {[%emt 0:00:02]}
53. Rg1+ {[%emt 0:00:01]} Kh2 {[%emt 0:00:02]} 54. Rd1 {[%emt 0:00:02]} g3 {
[%emt 0:00:02]} 55. Kf3 {[%emt 0:00:03]} g2 {[%emt 0:00:07]} 56. Rd2 {[%emt 0:
00:03]} Kh1 {[%emt 0:00:08]} 57. Re2 {[%emt 0:00:02]} Rf4+ {[%emt 0:00:05]} 58.
Ke3 {[%emt 0:00:05]} 0-1

[Event "FIDE Women World Blitz 2021"]
[Site "Warsaw"]
[Date "2021.12.29"]
[Round "3.13"]
[White "Kurmangaliyeva, Liya"]
[Black "Gaponenko, Inna"]
[Result "0-1"]
[ECO "B06"]
[WhiteElo "2222"]
[BlackElo "2339"]
[Annotator "NA"]
[PlyCount "112"]
[EventDate "2021.12.29"]
[EventType "swiss"]
[EventCountry "POL"]
[Tiebreak "Cut1 Buchholz"]
[SourceTitle "playchess.com"]
[Source "ChessBase"]
[SourceQuality "1"]
[TimeControl "180+2"]

1. e4 {[%emt 0:00:02]} g6 {[%emt 0:00:01]} 2. d4 {[%emt 0:00:02]} Bg7 {[%emt 0:
00:00]} 3. Nc3 {[%emt 0:00:06]} d6 {[%emt 0:00:01]} 4. f4 {[%emt 0:00:02]} a6 {
[%emt 0:00:02]} 5. Nf3 {[%emt 0:00:07]} b5 {[%emt 0:00:00]} 6. Bd3 {[%emt 0:00:
05]} Bb7 {[%emt 0:00:01]} 7. a4 {[%emt 0:00:13]} b4 {[%emt 0:00:02]} 8. Ne2 {
[%emt 0:00:01]} Nd7 {[%emt 0:00:12]} 9. Be3 {[%emt 0:00:08]} c5 {[%emt 0:00:04]
} 10. Ng3 {[%emt 0:00:35]} cxd4 {[%emt 0:00:17]} 11. Nxd4 {[%emt 0:00:12]} Ngf6
{[%emt 0:00:02]} 12. O-O {[%emt 0:00:16]} O-O {[%emt 0:00:04]} 13. Nb3 {
[%emt 0:00:15]} a5 {[%emt 0:00:27]} 14. Qe2 {[%emt 0:00:03]} Qc7 {[%emt 0:00:
03]} 15. Kh1 {[%emt 0:00:06]} h5 {[%emt 0:00:27]} 16. Qf3 {[%emt 0:00:21]} Ng4
{[%emt 0:00:17]} 17. Bd4 {[%emt 0:00:07]} e5 {[%emt 0:00:01]} 18. fxe5 {
[%emt 0:00:10]} Ndxe5 {[%emt 0:00:06]} 19. Qe2 {[%emt 0:00:12]} h4 {[%emt 0:00:
09]} 20. Nf5 {[%emt 0:00:20]} gxf5 {[%emt 0:00:02]} 21. Rxf5 {[%emt 0:00:01]}
Qe7 {[%emt 0:00:32]} 22. h3 {[%emt 0:00:01]} Nh6 {[%emt 0:00:06]} 23. Rh5 {
[%emt 0:00:05]} Ng6 {[%emt 0:00:14]} 24. Be3 {[%emt 0:00:03]} Bxe4 {[%emt 0:00:
28]} 25. Bxh6 {[%emt 0:00:03]} Bxd3 {[%emt 0:00:04]} 26. Qxd3 {[%emt 0:00:05]}
Bxh6 {[%emt 0:00:03]} 27. Rxh6 {[%emt 0:00:01]} Qg5 {[%emt 0:00:01]} 28. Qd2 {
[%emt 0:00:03]} Qxd2 29. Nxd2 {[%emt 0:00:01]} Rac8 {[%emt 0:00:06]} 30. Rc1 {
[%emt 0:00:02]} Rfe8 {[%emt 0:00:02]} 31. Nf3 {[%emt 0:00:03]} Re2 {[%emt 0:00:
03]} 32. Nxh4 {[%emt 0:00:01]} Nf4 {[%emt 0:00:03]} 33. Rf6 {[%emt 0:00:04]}
Ne6 {[%emt 0:00:02]} 34. c3 {[%emt 0:00:03]} Rxb2 {[%emt 0:00:01]} 35. Nf5 {
[%emt 0:00:04]} bxc3 {[%emt 0:00:02]} 36. Ne7+ {[%emt 0:00:01]} Kg7 {[%emt 0:
00:01]} 37. Nxc8 {[%emt 0:00:03]} Kxf6 {[%emt 0:00:02]} 38. Rxc3 {[%emt 0:00:
01]} Ra2 {[%emt 0:00:01]} 39. Nb6 {[%emt 0:00:02]} Nc5 {[%emt 0:00:03]} 40. Rc4
{[%emt 0:00:01]} Ra1+ {[%emt 0:00:02]} 41. Kh2 {[%emt 0:00:01]} Rb1 {[%emt 0:
00:02]} 42. Nd5+ {[%emt 0:00:01]} Ke5 {[%emt 0:00:01]} 43. Nc3 {[%emt 0:00:02]}
Rb4 {[%emt 0:00:01]} 44. Rg4 {[%emt 0:00:09]} Rxg4 {[%emt 0:00:04]} 45. hxg4 {
[%emt 0:00:00]} Kd4 {[%emt 0:00:04]} 46. Nb5+ {[%emt 0:00:02]} Kd5 {[%emt 0:00:
01]} 47. Nc3+ {[%emt 0:00:06]} Kc4 {[%emt 0:00:01]} 48. Nb5 {[%emt 0:00:02]} d5
{[%emt 0:00:01]} 49. Nd6+ {[%emt 0:00:01]} Kb4 {[%emt 0:00:03]} 50. Nxf7 {
[%emt 0:00:01]} Kxa4 {[%emt 0:00:01]} 51. g5 {[%emt 0:00:01]} Kb3 {[%emt 0:00:
02]} 52. g6 {[%emt 0:00:01]} Ne6 {[%emt 0:00:01]} 53. Ng5 {[%emt 0:00:01]} Ng7
{[%emt 0:00:00]} 54. Nf3 {[%emt 0:00:03]} a4 {[%emt 0:00:02]} 55. Kg3 {[%emt 0:
00:03]} a3 {[%emt 0:00:01]} 56. Nd2+ {[%emt 0:00:04]} Kc2 {[%emt 0:00:03]} 0-1